Cogmind - Beta 12 @@@ ROGUE MODE // 2023.04.11 @ 18:15:24 // AFD2019/Pay2Buy Player: ArabianSandBoa Result: Self-destructed Performance ------------- Evolutions (4) 2000 Regions Visited (11) 2200 Robots Destroyed (150) 750 Value Destroyed (9483) 9483 Prototype IDs (25) 500 Alien Tech Used (1) 200 Bonus (4982) 4982 TOTAL SCORE: 20115 Bonus ------- High Alert Combat Kills 2441 Follower Combat Kills 629 Entered Garrisons 400 Used RIF Installer 1500 Aligned with FarCom 300 Friendly Fire -288 Cogmind --------- Core Integrity 595/850 Matter 74/300 Energy 100/100 System Corruption 2% Temperature Cool (0) Movement Core (50) Location -6/Waste Parts ------- > --- POWER (1) -------- (None) > --- PROPULSION (2) --- (None) > --- UTILITY (10) ----- Enhanced Optical Array Advanced Targeting Computer > --- WEAPON (2) ------- (None) > --- INVENTORY (10) --- Spiked Medium Treads Improved Target Analyzer Improved Particle Charger Stasis Canceller Remote Datajack Stasis Trap (100%) Stasis Trap (100%) Peak State ------------ > --- POWER ------------ Angular Momentum Engine > --- PROPULSION ------- Spiked Medium Treads Armored Medium Treads > --- UTILITY ---------- Improved Cooling System Improved Cooling System Enhanced Optical Array Advanced Targeting Computer Advanced Targeting Computer Armor Integrity Analyzer Improved Particle Charger Layered Heavy Armor Plating Focal Shield > --- WEAPON ----------- Ion Burst Cannon Null Cannon > --- INVENTORY -------- Improved Target Analyzer Improved Weapon Cycler Stasis Canceller Ion Burst Cannon Long-range Missile Launcher Smartbomb Launcher Remote Datajack Stasis Trap Stasis Trap [Rating: 84] Favorites ----------- Power Enhanced Nuclear Core Engine Angular Momentum Engine Power Core Enhanced Nuclear Core Propulsion Spiked Treads Treads Spiked Treads Utility Advanced Targeting Computer Device Improved Particle Charger Processor Advanced Targeting Computer Protection Medium Reactive Plating Weapon Cooled Pulse Rifle Energy Gun Cooled Pulse Rifle Energy Cannon Ion Burst Cannon Ballistic Gun Improved Assault Rifle Launcher Long-range Missile Launcher Special Weapon Remote Datajack Special Melee Weapon Datajack Build | -11 -10 -10 -10 -9 -8 -7 -7 -7 -7 -6 -6 ------- Run | Jun Mat Min Exi Min Mat Fac Gar Fac Gar Fac Was Slots Evolved 8 | . . . . . 4 2 . . . 2 . Power . | . . . . . . . . . . . . Propulsion . | . . . . . . . . . . . . Utility 8 | . . . . . 4 2 . . . 2 . Weapon . | . . . . . . . . . . . . Parts Attached 67 | . 8 1 1 5 9 1 16 . 9 9 8 Power 1 | . . . . . 1 . . . . . . Engine . | . . . . . . . . . . . . Core 1 | . . . . . 1 . . . . . . Reactor . | . . . . . . . . . . . . Propulsion 5 | . . . . 1 1 . 2 . . . 1 Treads 5 | . . . . 1 1 . 2 . . . 1 Leg . | . . . . . . . . . . . . Wheel . | . . . . . . . . . . . . Hover . | . . . . . . . . . . . . Flight . | . . . . . . . . . . . . Utility 11 | . . . . . 1 . 4 . 1 4 1 Device 2 | . . . . . . . . . . 1 1 Storage . | . . . . . . . . . . . . Processor 2 | . . . . . . . . . . 2 . Hackware . | . . . . . . . . . . . . Protection 7 | . . . . . 1 . 4 . 1 1 . Artifact . | . . . . . . . . . . . . Weapon 50 | . 8 1 1 4 6 1 10 . 8 5 6 Energy Gun 12 | . . . . . 4 . 5 . 3 . . Energy Cannon 23 | . 4 . . 1 2 1 2 . 4 5 4 Ballistic Gun 7 | . 4 1 . 2 . . . . . . . Ballistic Cannon . | . . . . . . . . . . . . Launcher 6 | . . . . 1 . . 2 . 1 . 2 Special Weapon 1 | . . . . . . . 1 . . . . Impact Weapon . | . . . . . . . . . . . . Slashing Weapon . | . . . . . . . . . . . . Piercing Weapon . | . . . . . . . . . . . . Special Melee Weapon 1 | . . . 1 . . . . . . . . Unidentified Prototypes . | . . . . . . . . . . . . Parts Lost 30 | . . . . 3 3 . 3 . 6 4 11 Power 2 | . . . . . . . . . 1 . 1 Propulsion 6 | . . . . 1 1 . 1 . 1 1 1 Utility 13 | . . . . . 2 . 2 . 2 3 4 Weapon 9 | . . . . 2 . . . . 2 . 5 Highest Loss Streak 11 | . . . . 3 1 . 3 . 2 1 11 To Critical Strikes 1 | . . . . . . . . . 1 . . Average Slot Usage (%) 93 | . 83 85 85 85 99 92 99 94 95 95 77 Engine 1 | . . . . . . . . . 2 6 4 Core 4 | . . . . 2 9 7 7 7 4 . . Treads 18 | . 27 28 28 27 18 15 14 15 14 13 7 Device 15 | . 13 14 14 14 15 15 16 15 13 21 23 Processor 25 | . 13 14 14 14 31 23 23 23 31 32 25 Protection 8 | . . . . . 7 15 20 17 10 6 5 Energy Gun 9 | . . . . . 17 7 13 15 11 . . Energy Cannon 3 | . 5 8 . 2 . 7 . . 2 13 8 Ballistic Gun 4 | . 22 19 16 22 . . . . . . . Naked Turns 20 | . 20 . . . . . . . . . . Heaviest Build 62 | . 8 8 7 15 41 35 53 53 62 62 58 Greatest Support 55 | 3 40 40 40 43 43 40 40 40 48 55 55 Greatest Overweight (x) 1 | . . . . . 1 . 1 1 1 1 1 Average Overweight (x) . | . . . . . . . . 1 . . 1 Largest Inventory Capacity 10 | . 10 10 10 10 10 10 10 10 10 10 10 Average Capacity 10 | . 10 10 10 10 10 10 10 10 10 10 10 Most Carried 10 | . 5 6 7 10 10 10 10 9 10 10 10 Average Carried 7 | . . 5 6 9 9 10 9 7 7 9 9 Final Capacity 10 | 10 10 10 10 10 10 10 10 10 10 10 10 Final Carried 10 | . 5 6 7 9 9 10 7 9 10 10 7 Class Distribution -------------------- 100% | Mutant Dominant Class ---------------- Mutant | -10/Materials Mutant | -10/Mines Mutant | -10/Exiles Mutant | -9/Mines Mutant | -8/Materials Mutant | -7/Factory Mutant | -7/Garrison Mutant | -7/Factory Mutant | -7/Garrison Mutant | -6/Factory Mutant | -6/Waste Resources | -11 -10 -10 -10 -9 -8 -7 -7 -7 -7 -6 -6 ----------- Run | Jun Mat Min Exi Min Mat Fac Gar Fac Gar Fac Was Matter Collected 1731 | . 715 61 . 195 75 . 455 . 163 67 . Remotely 1001 | . 715 61 . 195 30 . . . . . . Salvage Created 6434 | . 886 90 . 322 1526 121 1125 . 1074 747 543 Parts . | . . . . . . . . . . . . Haulers Intercepted 3 | . 2 . . . 1 . . . . . . Recyclers Shooed . | . . . . . . . . . . . . Parts Field Recycled . | . . . . . . . . . . . . Retrieved Matter . | . . . . . . . . . . . . Parts Self-Destructed . | . . . . . . . . . . . . Prevented . | . . . . . . . . . . . . Kills | -11 -10 -10 -10 -9 -8 -7 -7 -7 -7 -6 -6 ------- Run | Jun Mat Min Exi Min Mat Fac Gar Fac Gar Fac Was Combat Hostiles Destroyed 126 | . 20 2 . 15 23 . 27 . 23 14 2 Guns 93 | . 20 2 . 7 22 . 20 . 22 . . Cannons 16 | . . . . 1 . . . . 1 13 1 AOE 15 | . . . . 7 . . 7 . . . 1 Classes Destroyed 19 | . 6 . . 2 6 1 1 . 2 . 1 Worker 5 | . 3 . . . 1 . . . . 1 . Builder 1 | . . . . 1 . . . . . . . Tunneler 2 | . . . . . 1 . . . . 1 . Hauler 3 | . 2 . . . 1 . . . . . . Recycler 1 | . . . . . 1 . . . . . . Mechanic 1 | . . . . . . 1 . . . . . Operator 2 | . 1 . . . 1 . . . . . . Watcher 7 | . 3 . . . 3 . . . . 1 . Swarmer 35 | . 6 . . 10 . . 5 . 14 . . Grunt 51 | . 14 2 . 4 13 . 11 . 2 5 . Brawler 2 | . . . . . 2 . . . . . . Duelist 4 | . . . . 1 . . 1 . . 2 . Sentry 18 | . . . . . 6 . 5 . 6 1 . Specialist 3 | . . . . . . . . . 1 2 . Hunter 4 | . . . . . 1 . 2 . . 1 . Programmer 5 | . . . . . . . 3 . . 2 . Heavy 2 | . . . . . 1 . . . . 1 . Behemoth 1 | . . . . . . . . . 1 . . Compactor 2 | . . . . . . . . . . . 2 Guerrilla 1 | . . . . . . . . . 1 . . Best Kill Streak 10 | . 6 2 . 10 3 1 4 . 4 3 1 Combat Bots Only 9 | . 5 2 . 9 3 . 4 . 4 3 1 Max Kills in Single Turn 2 | . 2 1 . 2 1 1 2 . 1 2 1 Gunslinging 1 | . . . . . . . 1 . . . . Exploded 2 | . . . . 2 . . 2 . . . 1 Melee . | . . . . . . . . . . . . Uniques/NPCs Destroyed . | . . . . . . . . . . . . Combat | -11 -10 -10 -10 -9 -8 -7 -7 -7 -7 -6 -6 -------- Run | Jun Mat Min Exi Min Mat Fac Gar Fac Gar Fac Was Damage Taken 5451 | . 488 28 . 347 768 . 1198 . 1042 338 1242 Core 761 | . 122 . . 41 78 . 68 . 197 107 148 Absorbed by Shields 21 | . . . . 21 . . . . . . . Core Remaining (%) 70 | 100 . . . 34 85 . . . 62 . . Volleys Fired 451 | . 102 4 . 20 72 16 104 . 77 40 16 Largest 2 | . 2 2 . 2 2 1 2 . 2 2 2 Hottest 200 | . 56 56 . 81 69 69 130 . 200 200 200 Shots Fired 791 | . 180 7 . 32 137 16 175 . 152 70 22 Gun 595 | . 156 6 . 22 131 . 141 . 139 . . Cannon 152 | . 24 1 . 4 6 16 6 . 11 70 14 Launcher 31 | . . . . 6 . . 15 . 2 . 8 Special 13 | . . . . . . . 13 . . . . Kinetic 184 | . 156 6 . 22 . . . . . . . Thermal 508 | . . . . . 131 . 143 . 150 70 14 Explosive 31 | . . . . 6 . . 15 . 2 . 8 Electromagnetic 55 | . 24 1 . 4 6 16 4 . . . . Robot Hit Streak 39 | . 19 24 . 27 39 . 25 . 29 13 12 Robot Miss Streak 5 | . 4 . . 2 2 . 3 . 3 5 3 Penetration Max . | . . . . . . . . . . . . Secondary Targets 12 | . 2 . . 2 1 . 2 . 5 . . Max Gunslinging Chain 1 | . 1 . . 1 1 . 1 . 1 . . Shots Hit Robots 458 | . 91 5 4 23 90 . 99 . 85 41 20 Core Hits 256 | . 36 4 . 19 52 2 56 . 41 37 9 Critical Kills 1 | . 1 . . . . . . . . . . Critical Parts Destroyed . | . . . . . . . . . . . . Critical Strikes 12 | . 1 . . . 3 . 2 . 6 . . Burn 11 | . . . . . 3 . 2 . 6 . . Destroy 1 | . 1 . . . . . . . . . . Melee Attacks 4 | . . . 4 . . . . . . . . Impact . | . . . . . . . . . . . . Slashing . | . . . . . . . . . . . . Piercing . | . . . . . . . . . . . . Sneak Attacks 4 | . . . 4 . . . . . . . . Combat Hostiles . | . . . . . . . . . . . . Follow-up Attacks . | . . . . . . . . . . . . Damage Inflicted 12961 | . 1630 75 . 747 1963 70 2677 . 2028 1768 2003 Guns 7264 | . 1371 75 . 266 1898 . 1744 . 1910 . . Cannons 2934 | . 70 . . 61 . . . . 118 1768 917 Explosions 2763 | . 189 . . 420 65 70 933 . . . 1086 Melee . | . . . . . . . . . . . . Ramming . | . . . . . . . . . . . . Kinetic 1712 | . 1371 75 . 266 . . . . . . . Thermal 8493 | . 138 . . . 1898 . 1744 . 2028 1768 917 Explosive 2625 | . 51 . . 420 65 70 933 . . . 1086 Electromagnetic 131 | . 70 . . 61 . . . . . . . Impact . | . . . . . . . . . . . . Slashing . | . . . . . . . . . . . . Piercing . | . . . . . . . . . . . . Highest Corruption 2 | . . . . . . . 2 2 2 2 2 Average Corruption 1 | . . . . . . . 1 2 2 1 2 Corruption Purged . | . . . . . . . . . . . . Corruption Blocked . | . . . . . . . . . . . . Effects 58 | . . . . . . . 7 4 39 7 1 Message Errors 15 | . . . . . . . 4 . 10 1 . Matter Fused 13 | . . . . . . . 1 1 8 2 1 Heat Flow Errors 9 | . . . . . . . 1 1 6 1 . Energy Discharges 7 | . . . . . . . . 1 5 1 . Data Loss (minor) 5 | . . . . . . . . 1 4 . . Data Loss (major) 1 | . . . . . . . . . 1 . . Misfires 7 | . . . . . . . 1 . 4 2 . Alerts 1 | . . . . . . . . . 1 . . Overload Shots 1 | . . . . . 1 . . . . . . Effects 1 | . . . . . 1 . . . . . . Energy Bleed 1 | . . . . . 1 . . . . . . Overflow Damage 184 | . 101 . . . . . 34 . . . 49 Projectiles . | . . . . . . . . . . . . Explosions 184 | . 101 . . . . . 34 . . . 49 Melee . | . . . . . . . . . . . . Knockbacks . | . . . . . . . . . . . . Impact . | . . . . . . . . . . . . Kinetic . | . . . . . . . . . . . . Secondary . | . . . . . . . . . . . . Self-Inflicted Damage 729 | . . . . . 111 . 37 . . . 581 Shots 11 | . . . . . 2 . 1 . . . 8 Rammed 1 | . . . . . 1 . . . . . . Targets Rammed 1 | . . . . . 1 . . . . . . Kicked . | . . . . . . . . . . . . Crushed . | . . . . . . . . . . . . Highest Temperature 353 | . 12 6 . 39 72 174 273 197 353 40 92 Average Temperature 51 | . 5 4 . 12 12 58 48 99 78 20 45 Received Heat Transfer 1128 | . 207 18 . 48 333 . 294 . 183 45 . Effects 1 | . . . . . . . . . 1 . . Energy Bleed 1 | . . . . . . . . . 1 . . Siege Activations . | . . . . . . . . . . . . Robots Corrupted . | . . . . . . . . . . . . Combat Hostiles . | . . . . . . . . . . . . Parts Fried . | . . . . . . . . . . . . Impact Corruptions . | . . . . . . . . . . . . Robots Melted 2 | . . . . . 1 . . . . 1 . Combat Hostiles 2 | . . . . . 1 . . . . 1 . Parts Melted 2 | . . . . . . . 1 . . 1 . Heat Transferred 13440 | . 100 . . . 3626 . 3126 . 3713 1950 925 Parts Sabotaged . | . . . . . . . . . . . . Parts Stolen . | . . . . . . . . . . . . Parts Stripped . | . . . . . . . . . . . . Power Chain Reactions 1 | . 1 . . . . . . . . . . Missiles Intercepted . | . . . . . . . . . . . . Alert | -11 -10 -10 -10 -9 -8 -7 -7 -7 -7 -6 -6 ------- Run | Jun Mat Min Exi Min Mat Fac Gar Fac Gar Fac Was Peak Influence 2925 | . 563 284 . 396 715 670 2082 1153 2925 1726 576 Initial 1535 | . . 219 . . 154 196 469 1092 753 1535 576 Average 1073 | . 377 247 . 206 369 435 1224 1104 1808 1599 550 Maximum Alert Level 5 | . 2 1 . 1 3 2 5 4 5 5 2 Low Security (%) 5 | . 20 . . 65 7 4 . . . . . Level 1 15 | . 19 100 . 34 50 27 . . . . . Level 2 22 | . 59 . . . 40 68 26 . . . 100 Level 3 13 | . . . . . 1 . 20 72 23 . . Level 4 15 | . . . . . . . 14 27 20 50 . Level 5 27 | . . . . . . . 38 . 55 49 . High Security . | . . . . . . . . . . . . Max Security . | . . . . . . . . . . . . Squads Dispatched 19 | . 6 . . . 6 . . . . 7 . Investigation 9 | . 5 . . . 3 . . . . 1 . Extermination 2 | . . . . . . . . . . 2 . Reinforcement 6 | . 1 . . . 3 . . . . 2 . Assault 2 | . . . . . . . . . . 2 . Garrison . | . . . . . . . . . . . . Intercept . | . . . . . . . . . . . . Searches Triggered . | . . . . . . . . . . . . Construction Impeded 1 | . . . . . 1 . . . . . . Haulers Reinforced . | . . . . . . . . . . . . Active Scanning Responses . | . . . . . . . . . . . . Cargo Convoy Interrupts . | . . . . . . . . . . . . Stealth | -11 -10 -10 -10 -9 -8 -7 -7 -7 -7 -6 -6 --------- Run | Jun Mat Min Exi Min Mat Fac Gar Fac Gar Fac Was Distress Signals 2 | . 1 . . . 1 . . . . . . Communications Jammed . | . . . . . . . . . . . . Distress Signals . | . . . . . . . . . . . . Times Spotted 157 | . 25 2 . 15 31 . 30 3 32 16 3 Peak Tracking Total 6 | . 3 2 . 4 4 . 5 2 6 4 3 Tactical Retreats 7 | . 1 . . . 2 . 1 . 3 . . Traps | -11 -10 -10 -10 -9 -8 -7 -7 -7 -7 -6 -6 ------- Run | Jun Mat Min Exi Min Mat Fac Gar Fac Gar Fac Was Traps Triggered 15 | . 3 . . 1 1 . . . 9 1 . Indirectly . | . . . . . . . . . . . . Trap Hack Attempts . | . . . . . . . . . . . . Triggered . | . . . . . . . . . . . . Disarmed . | . . . . . . . . . . . . Reprogrammed . | . . . . . . . . . . . . Reused . | . . . . . . . . . . . . Traps Extracted . | . . . . . . . . . . . . Installed 1 | . . . . 1 . . . . . . . Triggered . | . . . . . . . . . . . . Most Traps Carried 3 | . . . . 3 3 3 3 2 2 2 2 Machines | -11 -10 -10 -10 -9 -8 -7 -7 -7 -7 -6 -6 ---------- Run | Jun Mat Min Exi Min Mat Fac Gar Fac Gar Fac Was Machines Disabled 92 | . 19 1 . . 20 22 11 . 13 6 . Max in Single Turn 6 | . 2 1 . . 2 6 3 . 2 1 . Garrison Relay 14 | . . . . . . . 9 . 5 . . Phase Generator 1 | . . . . . . . . . 1 . . Machines Repaired 2 | . 2 . . . . . . . . . . Machines Sabotaged . | . . . . . . . . . . . . Overloaded Fab Kills . | . . . . . . . . . . . . Hacking | -11 -10 -10 -10 -9 -8 -7 -7 -7 -7 -6 -6 --------- Run | Jun Mat Min Exi Min Mat Fac Gar Fac Gar Fac Was Machines Accessed 22 | . 4 . . . 4 2 3 3 4 2 . Terminals 20 | . 4 . . . 4 1 3 2 4 2 . Fabricators . | . . . . . . . . . . . . Repair Stations . | . . . . . . . . . . . . Recycling Units . | . . . . . . . . . . . . Scanalyzers . | . . . . . . . . . . . . Garrison Access 2 | . . . . . . 1 . 1 . . . Total Hacks 58 | . 14 . . . 14 3 8 7 8 4 . Successful 28 | . 8 . . . 7 3 1 5 3 1 . Failed 29 | . 5 . . . 7 . 7 2 5 3 . Catastrophic 4 | . 1 . . . 1 . . . 1 1 . Database Lockouts 1 | . 1 . . . . . . . . . . Manual 21 | . 13 . 1 . 4 . . 2 . 1 . Terminals 54 | . 14 . . . 14 2 8 4 8 4 . Fabricators . | . . . . . . . . . . . . Repair Stations . | . . . . . . . . . . . . Recycling Units . | . . . . . . . . . . . . Scanalyzers . | . . . . . . . . . . . . Garrison Access 4 | . . . . . . 1 . 3 . . . Terminal Hacks 16 | . 2 . . . 4 2 1 3 3 1 . Robot Analysis 1 | . 1 . . . . . . . . . . Prototype ID Bank 3 | . . . . . 1 . . 1 . 1 . Open Door 1 | . . . . . . . . . 1 . . Branch Access Points 1 | . . . . . . 1 . . . . . Emergency Access Points 2 | . . . . . . . . 1 1 . . Unreport Threat 3 | . . . . . 2 . . 1 . . . Hauler Manifests 1 | . . . . . . 1 . . . . . Zone Layout 2 | . 1 . . . 1 . . . . . . Garrison Registry 1 | . . . . . . . 1 . . . . Security Stations 1 | . . . . . . . . . 1 . . Fabricator Hacks . | . . . . . . . . . . . . Repair Station Hacks . | . . . . . . . . . . . . Recycling Unit Hacks . | . . . . . . . . . . . . Scanalyzer . | . . . . . . . . . . . . Garrison Access Hacks 2 | . . . . . . 1 . 1 . . . Unlock Access 2 | . . . . . . 1 . 1 . . . Unauthorized Hacks 10 | . 6 . . . 3 . . 1 . . . Terminals 9 | . 6 . . . 3 . . . . . . Botnet 4 | . 3 . . . 1 . . . . . . Sabotage 3 | . 2 . . . 1 . . . . . . Search 2 | . 1 . . . 1 . . . . . . Fabricators . | . . . . . . . . . . . . Repair Stations . | . . . . . . . . . . . . Recycling Units . | . . . . . . . . . . . . Scanalyzers . | . . . . . . . . . . . . Garrison Access 1 | . . . . . . . . 1 . . . Reprogram 1 | . . . . . . . . 1 . . . Data Cores Recovered 1 | . . . . . 1 . . . . . . Used . | . . . . . . . . . . . . Hacking Detections 18 | . 3 . . . 4 2 2 2 3 2 . Full Trace Events 7 | . 1 . . . 1 . 2 . 2 1 . Feedback Events 1 | . . . . . . . . . . 1 . Corruption 1 | . . . . . . . . . . 1 . Feedback Blocked . | . . . . . . . . . . . . Robot Schematics Acquired . | . . . . . . . . . . . . Robots Built . | . . . . . . . . . . . . Authchips . | . . . . . . . . . . . . Time . | . . . . . . . . . . . . Total Robot Build Rating . | . . . . . . . . . . . . Part Schematics Acquired . | . . . . . . . . . . . . Parts Built . | . . . . . . . . . . . . Authchips . | . . . . . . . . . . . . Time . | . . . . . . . . . . . . Total Part Build Rating . | . . . . . . . . . . . . Parts Repaired . | . . . . . . . . . . . . Time . | . . . . . . . . . . . . Parts Recycled . | . . . . . . . . . . . . Recycled Matter . | . . . . . . . . . . . . Retrieved Matter . | . . . . . . . . . . . . Retrieved Components . | . . . . . . . . . . . . Parts Scanalyzed . | . . . . . . . . . . . . Part Schematics Acquired . | . . . . . . . . . . . . Parts Damaged . | . . . . . . . . . . . . Bothacking | -11 -10 -10 -10 -9 -8 -7 -7 -7 -7 -6 -6 ------------ Run | Jun Mat Min Exi Min Mat Fac Gar Fac Gar Fac Was Used RIF Installer 3 | . . . . . . . 2 . 1 . . Hotswap 1 | . . . . . . . 1 . . . . Autooverride 1 | . . . . . . . . . 1 . . Robots Hacked 4 | . . . 4 . . . . . . . . Non-combat 3 | . . . 3 . . . . . . . . Combat 1 | . . . 1 . . . . . . . . Robot Hacks Applied 4 | . . . 4 . . . . . . . . parse_system 4 | . . . 4 . . . . . . . . Relay Couplers Released 59 | . . . . . . . 37 . 22 . . Machine Destruction 59 | . . . . . . . 37 . 22 . . Fabnet Peak Effective % . | . . . . . . . . . . . . Robots Rewired 8 | . . . . . . . 6 . 2 . . Allies Hacked . | . . . . . . . . . . . . Hacks Repelled . | . . . . . . . . . . . . Allies | -11 -10 -10 -10 -9 -8 -7 -7 -7 -7 -6 -6 -------- Run | Jun Mat Min Exi Min Mat Fac Gar Fac Gar Fac Was Total Allies 11 | . . . . . . . 8 . 2 . 1 Largest Group 5 | . . . . . . . 5 5 5 . 1 Highest-Rated Group 253 | . . . . . . . 253 253 253 . 31 Highest-Rated Ally 95 | . . . . . . . 95 95 95 . 31 Total Orders . | . . . . . . . . . . . . Ally Attacks 123 | . . . . . . . 43 9 57 . 14 Total Damage 2686 | . . . . . . . 675 406 1414 . 191 Kills 22 | . . . . . . . 6 3 13 . . Allies Corrupted . | . . . . . . . . . . . . Allies Melted . | . . . . . . . . . . . . Intel | -11 -10 -10 -10 -9 -8 -7 -7 -7 -7 -6 -6 ------- Run | Jun Mat Min Exi Min Mat Fac Gar Fac Gar Fac Was Robot Analysis Total 1 | . 1 . . . . . . . . . . Derelict Logs Recovered . | . . . . . . . . . . . . Drone Launches . | . . . . . . . . . . . . Drone Recoveries . | . . . . . . . . . . . . Exploration | -11 -10 -10 -10 -9 -8 -7 -7 -7 -7 -6 -6 ------------- Run | Jun Mat Min Exi Min Mat Fac Gar Fac Gar Fac Was Turns Passed 9560 | . 1408 198 342 184 1750 165 1386 397 2572 1077 81 Spaces Moved 3690 | 1 574 107 210 63 527 74 559 153 1074 339 9 Core 40 | 1 39 . . . . . . . . . . Treads 3650 | . 535 107 210 63 527 74 559 153 1074 339 9 Legs . | . . . . . . . . . . . . Wheels . | . . . . . . . . . . . . Hover . | . . . . . . . . . . . . Flight . | . . . . . . . . . . . . Fastest Speed 50 | 50 50 160 160 160 160 165 165 260 160 160 255 Average Speed 178 | 50 152 160 160 160 179 165 180 260 185 184 255 Slowest Speed 260 | 50 160 160 160 160 255 165 260 260 260 255 255 Overloaded Moves . | . . . . . . . . . . . . Propulsion Burnouts . | . . . . . . . . . . . . Robots Hopped . | . . . . . . . . . . . . Cave-ins Triggered . | . . . . . . . . . . . . Exploration Rate (%) 40 | 2 95 31 63 22 60 4 72 6 97 16 18 Regions Visited 11 Branch Regions 3 Pre-discovered Areas . | . . . . . . . . . . . . Known Exits Taken 2 | . . . . . . 1 . 1 . . . Unknown Exits Taken 6 | 1 1 1 1 1 1 . . . . . . Scrap Searched . | . . . . . . . . . . . . Spaces Dug 9 | . . . . . 1 . 1 . 1 6 . Terrain Destroyed 743 | . 69 . . 47 112 109 137 . 224 7 38 Melee . | . . . . . . . . . . . . Projectile 11 | . . . . . 1 . 2 . 1 7 . AOE 732 | . 69 . . 47 111 109 135 . 223 . 38 Terrain Rammed . | . . . . . . . . . . . . Walls Destroyed . | . . . . . . . . . . . . Machines Disabled . | . . . . . . . . . . . . Actions | -11 -10 -10 -10 -9 -8 -7 -7 -7 -7 -6 -6 --------- Run | Jun Mat Min Exi Min Mat Fac Gar Fac Gar Fac Was Total 5927 | . 923 126 214 113 1225 106 802 154 1524 704 36 Wait 1633 | . 240 14 . 20 601 15 96 . 336 309 2 Move 3680 | . 573 106 209 62 526 73 558 152 1073 339 9 Hop . | . . . . . . . . . . . . Pick Up 10 | . . 1 . 3 3 . . . 1 1 1 Fast Attach 6 | . 1 . . . 1 . . . . 2 2 Attach 12 | . . . . 2 . . 2 . 3 2 3 Detach 9 | . . . . 1 1 1 . 2 2 2 . Swap 50 | . 7 1 1 3 8 1 14 . 6 6 3 Drop 23 | . . . . . 12 . 3 . 5 3 . Fire 451 | . 102 4 . 20 72 16 104 . 77 40 16 Melee 4 | . . . 4 . . . . . . . . Ram . | . . . . . . . . . . . . Kick . | . . . . . . . . . . . . Crush 1 | . . . . . 1 . . . . . . Escape Stasis 9 | . . . . 1 . . . . 8 . . Rewire 38 | . . . . . . . 25 . 13 . . Trap 1 | . . . . 1 . . . . . . . Miscellaneous . | . . . . . . . . . . . . Route ------- -11/Junkyard -10/Materials (discovered 4 exits: [*Mat x3] / [*Min]) -10/Mines (discovered 2 exits: [*Mat] / *Exi) -10/Exiles -9/Mines -8/Materials (discovered 4 exits: *Fac x2 / [*Sto x2]) -7/Factory (discovered 3 exits: Low x2 / Gar) -7/Garrison (discovered 3 exits: *Fac x3) -7/Factory -7/Garrison (discovered 3 exits: *Fac x3) -6/Factory -6/Waste History --------- Turn | Location | Event 1 | -11/Junkyard | Discovered new exit (range 0) 1 | -11/Junkyard | Entered Materials 255 | -10/Materials | Discovered new exit (range 12) 311 | -10/Materials | Build established: Mutant 348 | -10/Materials | Central database locked down 632 | -10/Materials | Discovered new exit (range 3) 743 | -10/Materials | Discovered new exit (range 4) 1053 | -10/Materials | Discovered new exit (range 4) 1409 | -10/Materials | Entered Mines 1424 | -10/Mines | Discovered new exit (range 4) 1495 | -10/Mines | Received a Rocket Launcher from a helpful Derelict 1600 | -10/Mines | Deemed a non-threat by the Exiles lab entrance 1600 | -10/Mines | Discovered new exit (range 5) 1607 | -10/Mines | Entered Exiles 1651 | -10/Exiles | Met 8R-AWN 1687 | -10/Exiles | Met EX-HEX 1737 | -10/Exiles | Met EX-BIN 1756 | -10/Exiles | Aligned with FarCom system 1757 | -10/Exiles | Given EX-Vault access code 1794 | -10/Exiles | Opened EX-Vault 1820 | -10/Exiles | Warned to stay clear of 0b10 Research branches 1861 | -10/Exiles | Met EX-DEC 1937 | -10/Exiles | Discovered new exit (range 10) 1949 | -10/Exiles | Entered Mines 1956 | -9/Mines | Core integrity fell below 50% 1984 | -9/Mines | Found a hidden stash of uninstalled traps 2128 | -9/Mines | Discovered new exit (range 3) 2132 | -9/Mines | Destroyed 9 combat bots 2133 | -9/Mines | Entered Materials 2133 | -8/Materials | Evolved 4 slots: Utility x4 2140 | -8/Materials | Lost 3 parts (1n2w) 2373 | -8/Materials | Discovered new exit (range 4) 2625 | -8/Materials | Discovered new exit (range 3) 2710 | -8/Materials | Found Null Cannon 3226 | -8/Materials | Discovered new exit (range 12) 3592 | -8/Materials | Discovered new exit (range 3) 3883 | -8/Materials | Entered Factory 3883 | -7/Factory | Evolved 2 slots: Utility x2 4006 | -7/Factory | Identified exit to Garrison 4023 | -7/Factory | Identified exit to Lower Caves 4048 | -7/Factory | Entered Garrison 4108 | -7/Garrison | Garrison Relay disabled 4258 | -7/Garrison | Triggered checkpoint 4364 | -7/Garrison | Discovered new exit (range 60) 4364 | -7/Garrison | Discovered new exit (range 30) 4364 | -7/Garrison | Discovered new exit (range 64) 4438 | -7/Garrison | Triggered checkpoint 4468 | -7/Garrison | Garrison Relay disabled 4613 | -7/Garrison | Triggered checkpoint 4658 | -7/Garrison | Triggered checkpoint 4757 | -7/Garrison | Installed Relay Interface Framework 4769 | -7/Garrison | Triggered checkpoint 4789 | -7/Garrison | Garrison Relay disabled 4984 | -7/Garrison | Triggered checkpoint 4992 | -7/Garrison | Garrison Relay disabled 5013 | -7/Garrison | Expanded RIF knowledge: Hotswap 5146 | -7/Garrison | Triggered checkpoint 5224 | -7/Garrison | Lost 3 parts (1n2u) 5277 | -7/Garrison | Garrison Relay disabled 5324 | -7/Garrison | Found embedded Infiltrators 5434 | -7/Garrison | Entered Factory 5434 | -7/Factory | Accompanied by 5 allies 5802 | -7/Factory | Identified exit to Garrison 5831 | -7/Factory | Entered Garrison 5831 | -7/Garrison | Accompanied by 5 allies 6048 | -7/Garrison | Triggered checkpoint 6224 | -7/Garrison | Garrison Relay disabled 6404 | -7/Garrison | Triggered checkpoint 6547 | -7/Garrison | Garrison Relay disabled 6737 | -7/Garrison | Discovered new exit (range 10) 6818 | -7/Garrison | Triggered checkpoint 6923 | -7/Garrison | Discovered new exit (range 10) 6981 | -7/Garrison | Phase Generator disabled 7026 | -7/Garrison | Triggered checkpoint 7026 | -7/Garrison | Garrison Relay disabled 7199 | -7/Garrison | Spotted B-75 Beast 7272 | -7/Garrison | Triggered checkpoint 7272 | -7/Garrison | Triggered checkpoint 7337 | -7/Garrison | Garrison Relay disabled 7442 | -7/Garrison | Expanded RIF knowledge: Autooverride 7459 | -7/Garrison | Discovered new exit (range 15) 7520 | -7/Garrison | Learned Factory security intel 7682 | -7/Garrison | Triggered checkpoint 7854 | -7/Garrison | Spotted B-75 Beast 7864 | -7/Garrison | Destroyed B-75 Beast 7904 | -7/Garrison | Garrison Relay disabled 8403 | -7/Garrison | Entered Factory 8403 | -6/Factory | Evolved 2 slots: Utility x2 9264 | -6/Factory | Found Integrated Thermoelectric Network 9264 | -6/Factory | Installed Integrated Thermoelectric Network, gained heat-energy exchange potential 9453 | -6/Factory | First assault squad dispatched 9480 | -6/Factory | Sucked down chute 9480 | -6/Factory | Entered Waste 9481 | -6/Waste | Met a frightened Derelict 9491 | -6/Waste | Spotted C-40 Crusher 9491 | -6/Waste | Spotted C-40 Crusher 9509 | -6/Waste | Spotted C-40 Crusher 9512 | -6/Waste | Destroyed C-40 Crusher 9527 | -6/Waste | Crushed by Compactor (0 parts destroyed, 1 dropped) 9530 | -6/Waste | Crushed by Compactor (1 part destroyed) 9532 | -6/Waste | Crushed by Compactor (1 part destroyed, 1 dropped) 9535 | -6/Waste | Crushed by Compactor (1 part destroyed, 1 dropped) 9539 | -6/Waste | Crushed by Compactor (1 part destroyed) 9543 | -6/Waste | Destroyed C-40 Crusher 9550 | -6/Waste | Spotted C-40 Crusher 9551 | -6/Waste | Crushed by Compactor (0 parts destroyed, 1 dropped) 9554 | -6/Waste | Crushed by Compactor (0 parts destroyed, 1 dropped) 9560 | -6/Waste | Crushed by Compactor (1 part destroyed, 1 dropped) 9561 | -6/Waste | Self-destructed Last Messages --------------- 09543_ C-40 Crusher destroyed. 09545_ Critical hit (Destroy). 09548_ Angular Momentum Engine destroyed. 09548_ Destroyed Angular Momentum Engine. 09549_ The unstable cave ceiling collapses. 09551_ Imp. Cooling System crushed. 09551_ Critical hit (Destroy). 09552_ Lrn. Missile Launcher destroyed. 09552_ Destroyed Lrn. Missile Launcher. 09554_ Imp. Cooling System crushed. 09555_ Focal Shield destroyed. 09555_ Destroyed Focal Shield. 09555_ Lyr. Heavy Armor Plating destroyed. 09555_ Destroyed Lyr. Heavy Armor Plating. 09556_ The unstable cave ceiling collapses. 09557_ Armor Integrity Analyzer destroyed. 09559_ Smartbomb Launcher destroyed. 09559_ Destroyed Smartbomb Launcher. 09560_ Imp. Weapon Cycler crushed. 09560_ Adv. Targeting Computer crushed. Map ----- +----------------------------------------------------+ | ?????????????????????????????????????????????? | | ?????????????????????????????????????????????? | | ?????????????????????????????????????????????? | | ?????????????????????????????????????????????? | | ?????????????????????????????????????????????? | | ?????????????????????????????????????????????? | | ?????????????????????????????????????????????? | | ?????????????????????????????????????????????? | | ?????????????????????????????????????????????? | | ?????????????????????????????????????????????? | | ?????????????????????????????????????????????? | | ?????????????????????????????????????????????? | | ?????????????????????????????????????????????? | | ?????????????????????????????????????????????? | | ?????????????????????????????????????????????? | | ????????????????????????????????#????????????? | | ?????????????############?????? #????????????? | | ?????????????# #????? #????????????? | | ?????????????# ##??? #????????????? | | ?????????????# ### ######## #? | | ?????????????# CC #? | | ?????????????# CC #? | | ?????????????# #? | | ?????????????# % CC #? | | ?????????????# CC ######## #? | | ?????????????# @ #????????????? | | ?????????????# #????????????? | | ?????????????##### # #????????????? | | ?????????????????# #????#????????????? | | ?????????????????### # ????????????????? | | ???????????????????#######? ??????????????? | | ???????????????????????????? ????????????? | | ????????????????????????????? ???????????? | | ?????????????????????????????? #??????????? | | ??????????????????????????????? #??????????? | | ???????????????????????????????? #??????????? | | ??????????????????????????????????#??????????? | | ?????????????????????????????????????????????? | | ?????????????????????????????????????????????? | | ?????????????????????????????????????????????? | | ?????????????????????????????????????????????? | | ?????????????????????????????????????????????? | | ?????????????????????????????????????????????? | | ?????????????????????????????????????????????? | | ?????????????????????????????????????????????? | | ?????????????????????????????????????????????? | | ?????????????????????????????????????????????? | | ?????????????????????????????????????????????? | | ?????????????????????????????????????????????? | | ?????????????????????????????????????????????? | +----------------------------------------------------+ Best States ------------- Heat Dissipation 91 Energy Generation 18 Energy Capacity 300 Matter Stores 300 Matter Capacity 300 Sight Range 22 Terrain Scan Density 10 Armor Coverage 825 Resistance: KI 30 Resistance: TH 10 Weapon Cycling 20 Evasion (%) 50 Targeting Accuracy 24 Target Analysis 6 Core Analysis 6 Armor Integrity Analysis 30 Recoil Reduction 2 Particle Charging 20 Item Schematics ----------------- None Robot Schematics ------------------ None Fabricated ------------ Nothing Alien Tech Used ----------------- Integrated Thermoelectric Network Achievements -------------- None Challenges ------------ None Cogshop Purchases (64) ------------------------ Imp. Assault Rifle (699) Imp. Assault Rifle (699) Spk. Treads (874) Spk. Treads (874) Imp. Targeting Computer (699) Hpw. Tractor Beam (699) Lgt. EM Pulse Cannon (660) Imp. Treads (473) Spk. Treads (473) Spk. Treads (473) Spk. Treads (473) Datajack (694) Nuclear Core (742) Hpw. Shotgun (806) Cld. Pulse Rifle (996) Cld. Pulse Rifle (996) Armor Integrity Analyzer (872) Core Analyzer (872) Target Analyzer (775) Adv. Targeting Computer (775) Arm. Treads (1031) Imp. EM Pulse Cannon (817) Particle Charger (665) Weapon Cycler (748) Triangulator (Loot Box) Enh. Nuclear Core (Loot Box) Hrd. Light Armor Plating (Loot Box) Cmb. Gravmag System (Loot Box) Gatling Laser (Loot Box) Null Cannon (Loot Box) Cld. Pulse Rifle (952) Cld. Pulse Rifle (952) Cld. Pulse Rifle (952) Reflective Plating (680) Med. Reactive Plating (765) Imp. Particle Charger (820) Imp. Medium Armor Plating (941) Focal Shield (1041) Remote Datajack (843) Lrn. Missile Launcher (1825) Imp. Particle Charger (1025) Spk. Medium Treads (1027) Adv. Targeting Computer (963) Stasis Canceller (1296) Imp. Target Analyzer (1208) Imp. Particle Charger (1486) Hrd. Medium Armor Plating (918) Angular Momentum Engine (940) Ion Burst Cannon (2649) Ion Burst Cannon (2649) Ion Burst Cannon (2649) Imp. Cooling System (2049) Imp. Cooling System (2049) Imp. Target Analyzer (665) Adv. Targeting Computer (531) Enh. Optical Array (665) Imp. Weapon Cycler (2917) Imp. Particle Charger (3331) Arm. Medium Treads (981) Lyr. Heavy Armor Plating (1049) Railgun (Loot Box) Focal Shield (Loot Box) Smartbomb Launcher (Loot Box) Integrated Thermoelectric Network (Loot Box) Game ------ Seed TrackerTacticalScreen Manual? 0 Play Time 01:09:56 Cumulative 548.3 hours Start 2023.04.11 @ 13:27:58 End 2023.04.11 @ 18:15:24 Sessions 1 Manual Loads 0 Difficulty Rogue Special Mode AFD2019/Pay2Buy Game No. 573 Rogue 573 Adventurer 0 Explorer 0 Win Type - Total 1 Types 1/0/0/0/0/0/0/0/0 Lore% 69 Gallery% 84 Achievement% 66 Wizard Run 0 Options --------- ASCII 0 Keyboard 0 Movement Mouse Keybinds 0 Fullscreen 2 Font 24/Smallcaps Map View 76x50 Tactical HUD 1 Map Filters NONE Filters NONE Steam 1 RUN: 5712a46a-982d-4733-8555-e765530c0822